Cogmind - Beta 13 *** ADVENTURER MODE // 2024.08.05 @ 12:29:34 Player: Jefffff Result: Destroyed by L-31 Rogue with Katana Performance ------------- Evolutions (1) 500 Regions Visited (5) 1000 Robots Destroyed (68) 340 Value Destroyed (1332) 1332 Prototype IDs (26) 520 Alien Tech Used (0) 0 Bonus (262) 262 TOTAL SCORE: 3954 Bonus ------- Aligned with FarCom 300 Friendly Fire -38 Cogmind --------- Core Integrity 0/400 Matter 268/300 Energy 160/160 System Corruption 1% Temperature Cool (9) Movement Rolling (116) Ox2 Location -8/Mines Parts ------- > --- POWER (1) -------- Light Nuclear Core > --- PROPULSION (3) --- Wheel Wheel Compact Wheel (fused) > --- UTILITY (3) ------ Huge Storage Unit Improved Signal Interpreter Transport Network Coupler > --- WEAPON (2) ------- Improved Assault Rifle Improved Assault Rifle > --- INVENTORY (25) --- Improved Ion Engine Light Nuclear Core Light Nuclear Core Cooling System Humpback Trap Scanner Power Shielding Light Armor Plating Light Armor Plating Light Armor Plating PSU Rigger Particle Gun Advanced Beam Cannon Ion Cannon Ion Cannon Improved Light Cannon Assault Cannon Assault Cannon Mini Grenade Launcher Improved Datajack Plasma Cutter Heavy Hammer Peak State ------------ > --- POWER ------------ Light Nuclear Core > --- PROPULSION ------- Wheel Wheel Compact Wheel > --- UTILITY ---------- Huge Storage Unit Improved Signal Interpreter Transport Network Coupler > --- WEAPON ----------- Improved Assault Rifle Improved Assault Rifle > --- INVENTORY -------- Improved Ion Engine Light Nuclear Core Light Nuclear Core Cooling System Humpback Trap Scanner Power Shielding Light Armor Plating Light Armor Plating Light Armor Plating PSU Rigger Particle Gun Advanced Beam Cannon Ion Cannon Ion Cannon Improved Light Cannon Assault Cannon Assault Cannon Mini Grenade Launcher Improved Datajack Plasma Cutter Heavy Hammer [Rating: 22] Favorites ----------- Power Light Nuclear Core Engine Improved Ion Engine Power Core Light Nuclear Core Propulsion Wheel Leg Aluminum Leg Wheel Wheel Utility Transport Network Coupler Device Improved Heat Sink Storage Huge Storage Unit Processor Transport Network Coupler Weapon Improved Light Cannon Energy Gun Spread Laser Energy Cannon Advanced Beam Cannon Ballistic Gun Assault Rifle Ballistic Cannon Improved Light Cannon Special Weapon Mining Laser Impact Weapon Hammer Build | -11 -10 -9 -9 -9 -8 ------- Run | Yrd Mat Mat Min Exi Min Slots Evolved 2 | . . 2 . . . Power . | . . . . . . Propulsion 1 | . . 1 . . . Utility 1 | . . 1 . . . Weapon . | . . . . . . Parts Attached 45 | . 7 36 . . 2 Power 8 | . 1 7 . . . Engine 6 | . . 6 . . . Core 2 | . 1 1 . . . Reactor . | . . . . . . Propulsion 16 | . 2 14 . . . Treads . | . . . . . . Leg . | . . . . . . Wheel 16 | . 2 14 . . . Hover . | . . . . . . Flight . | . . . . . . Utility 7 | . 1 6 . . . Device 1 | . . 1 . . . Storage 2 | . 1 1 . . . Processor 4 | . . 4 . . . Hackware . | . . . . . . Protection . | . . . . . . Artifact . | . . . . . . Weapon 14 | . 3 9 . . 2 Energy Gun 2 | . . 2 . . . Energy Cannon 3 | . 1 2 . . . Ballistic Gun 4 | . 1 1 . . 2 Ballistic Cannon 3 | . . 3 . . . Launcher . | . . . . . . Special Weapon 1 | . 1 . . . . Impact Weapon 1 | . . 1 . . . Slashing Weapon . | . . . . . . Piercing Weapon . | . . . . . . Special Melee Weapon . | . . . . . . Unidentified Prototypes 1 | . . 1 . . . Parts Lost 11 | . . 11 . . . Power . | . . . . . . Propulsion 6 | . . 6 . . . Utility 2 | . . 2 . . . Weapon 3 | . . 3 . . . Highest Loss Streak 3 | . . 3 . . . To Critical Strikes 1 | . . 1 . . . Average Slot Usage (%) 93 | . 83 97 100 77 100 Engine 4 | . 5 7 . . . Core 6 | . 8 3 11 11 11 Wheel 32 | . 28 32 33 33 33 Storage 11 | . 14 11 11 11 11 Processor 17 | . . 18 22 22 22 Energy Cannon 6 | . 9 9 . . . Ballistic Gun 2 | . 14 1 . . 22 Ballistic Cannon 9 | . . 9 22 . . Naked Turns . | . . . . . . Heaviest Build 95 | 12 50 95 94 85 . Greatest Support 48 | 20 20 48 36 36 . Greatest Overweight (x) 3 | . 2 3 2 2 . Average Overweight (x) 1 | . 1 1 2 2 . Largest Inventory Capacity 25 | . 20 25 25 25 25 Average Capacity 22 | . 16 22 25 25 25 Most Carried 25 | . 20 25 25 25 24 Average Carried 21 | . 10 21 25 24 23 Final Capacity 25 | 8 20 25 25 25 25 Final Carried 25 | 6 20 25 25 25 23 Class Distribution -------------------- 57% | Mutant 42% | Scavenger-Mutant Dominant Class ---------------- Mutant | -10/Materials Scavenger-Mutant | -9/Materials Mutant | -9/Mines Mutant | -9/Exiles Mutant | -8/Mines Resources | -11 -10 -9 -9 -9 -8 ----------- Run | Yrd Mat Mat Min Exi Min Matter Collected 1045 | 200 135 595 115 . . Remotely . | . . . . . . Salvage Created 2094 | . 520 1432 142 . . Parts 134 | . 28 91 15 . . Haulers Intercepted 8 | . 2 6 . . . Recyclers Shooed 2 | . 1 1 . . . Parts Field Recycled . | . . . . . . Retrieved Matter . | . . . . . . Parts Self-Destructed . | . . . . . . Prevented . | . . . . . . Kills | -11 -10 -9 -9 -9 -8 ------- Run | Yrd Mat Mat Min Exi Min Combat Hostiles Destroyed 45 | . 6 31 8 . . Guns 3 | . 1 2 . . . Cannons 39 | . 5 26 8 . . Classes Destroyed 11 | . 5 5 1 . . Worker 3 | . . 3 . . . Tunneler 1 | . . 1 . . . Hauler 8 | . 2 6 . . . Recycler 3 | . 2 1 . . . Operator 1 | . . 1 . . . Watcher 6 | . 2 4 . . . Swarmer 21 | . 3 12 6 . . Grunt 15 | . 3 10 2 . . Duelist 1 | . . 1 . . . Sentry 8 | . . 8 . . . Zionite 1 | . . . 1 . . Best Kill Streak 8 | . 4 8 3 . . Combat Bots Only 7 | . 3 7 3 . . Max Kills in Single Turn 2 | . 1 2 1 . . Gunslinging . | . . . . . . Exploded . | . . . . . . Melee . | . . . . . . Uniques/NPCs Destroyed . | . . . . . . Combat | -11 -10 -9 -9 -9 -8 -------- Run | Yrd Mat Mat Min Exi Min Hostile Shots Fired 224 | . 31 162 20 . 11 Missed 61 | . 10 38 9 . 4 Damage Taken 1660 | . 179 1296 77 . 108 Core 430 | . 12 323 25 . 70 Absorbed by Shields . | . . . . . . Ignored by Resistances 491 | . 58 379 23 . 31 Regen/Repaired (Parts) 62 | . . 62 . . . Core Remaining (%) 97 | 100 95 . . . . Volleys Fired 131 | . 33 86 10 . 2 Largest 2 | . 2 2 2 . 2 Hottest 133 | . 100 133 83 . 46 Shots Fired 243 | . 53 164 22 . 4 Gun 60 | . 20 36 . . 4 Cannon 170 | . 20 128 22 . . Launcher . | . . . . . . Special 13 | . 13 . . . . Kinetic 114 | . 20 68 22 . 4 Thermal 129 | . 33 96 . . . Explosive . | . . . . . . Electromagnetic . | . . . . . . Robot Hit Streak 22 | . 11 22 9 . 10 Robot Miss Streak 3 | . 2 3 1 . 1 Penetration Max . | . . . . . . Secondary Targets . | . . . . . . Shots Hit Robots 173 | . 28 127 15 . 3 Core Hits 80 | . 15 54 10 . 1 Critical Kills 2 | . 1 1 . . . Critical Parts Destroyed 1 | . . 1 . . . Critical Strikes 7 | . 1 5 1 . . Burn 1 | . . 1 . . . Meltdown 1 | . . 1 . . . Destroy 1 | . 1 . . . . Blast 3 | . . 2 1 . . Smash 1 | . . 1 . . . Melee Attacks 5 | . . 5 . . . Impact 5 | . . 5 . . . Slashing . | . . . . . . Piercing . | . . . . . . Sneak Attacks . | . . . . . . Combat Hostiles . | . . . . . . Follow-up Attacks . | . . . . . . Damage Inflicted 3263 | . 443 2395 379 . 46 Guns 608 | . 165 397 . . 46 Cannons 2536 | . 278 1901 357 . . Explosions . | . . . . . . Melee 97 | . . 97 . . . Ramming 22 | . . . 22 . . Kinetic 1366 | . 165 798 357 . 46 Thermal 1778 | . 278 1500 . . . Explosive . | . . . . . . Electromagnetic . | . . . . . . Impact 97 | . . 97 . . . Slashing . | . . . . . . Piercing . | . . . . . . Highest Corruption 1 | . 1 1 1 1 1 Average Corruption 1 | . 1 1 1 1 1 Corruption Purged . | . . . . . . Corruption Blocked . | . . . . . . Effects 27 | . 3 12 10 2 . Message Errors 7 | . . 4 3 . . Matter Fused 7 | . 1 3 3 . . Heat Flow Errors 1 | . 1 . . . . Energy Discharges 3 | . . 1 1 1 . Parts Rejected 1 | . . 1 . . . Parts Fused 1 | . . . . 1 . Data Loss (minor) 2 | . 1 1 . . . Data Loss (major) 2 | . . 1 1 . . Misfires 3 | . . 1 2 . . Overload Shots . | . . . . . . Overflow Damage 38 | . . 38 . . . Projectiles 10 | . . 10 . . . Explosions . | . . . . . . Melee 28 | . . 28 . . . Knockbacks 8 | . . 5 3 . . Impact . | . . . . . . Kinetic 8 | . . 5 3 . . Secondary . | . . . . . . Self-Inflicted Damage 11 | . . . 11 . . Shots . | . . . . . . Rammed 1 | . . . 1 . . Targets Rammed 1 | . . . 1 . . Kicked . | . . . . . . Crushed . | . . . . . . Highest Temperature 345 | . 144 345 60 . 15 Average Temperature 66 | . 34 86 28 . 9 Received Heat Transfer 678 | . 42 585 6 . 45 Effects 4 | . . 4 . . . Shutdowns 1 | . . 1 . . . Interference 2 | . . 2 . . . Damage (minor) 1 | . . 1 . . . Siege Activations . | . . . . . . Robots Corrupted . | . . . . . . Combat Hostiles . | . . . . . . Parts Fried . | . . . . . . Impact Corruptions 1 | . . 1 . . . Robots Melted 2 | . . 2 . . . Combat Hostiles 2 | . . 2 . . . Parts Melted 12 | . . 12 . . . Heat Transferred 3563 | . 592 2971 . . . Parts Sabotaged . | . . . . . . Parts Stolen . | . . . . . . Parts Stripped . | . . . . . . Power Chain Reactions . | . . . . . . Alert | -11 -10 -9 -9 -9 -8 ------- Run | Yrd Mat Mat Min Exi Min Peak Influence 363 | . 146 363 195 . . Initial 30 | . . 30 . . . Average 89 | . 54 118 50 . . Maximum Alert Level 1 | . . 1 . . . Low Security (%) 92 | . 100 87 100 . 100 Level 1 7 | . . 12 . . . Level 2 . | . . . . . . Level 3 . | . . . . . . Level 4 . | . . . . . . Level 5 . | . . . . . . High Security . | . . . . . . Max Security . | . . . . . . Squads Dispatched 2 | . . 2 . . . Investigation 2 | . . 2 . . . Extermination . | . . . . . . Reinforcement . | . . . . . . Assault . | . . . . . . Garrison . | . . . . . . Intercept . | . . . . . . Searches Triggered . | . . . . . . Construction Impeded . | . . . . . . Haulers Reinforced . | . . . . . . Active Scanning Responses . | . . . . . . Cargo Convoy Interrupts . | . . . . . . Stealth | -11 -10 -9 -9 -9 -8 --------- Run | Yrd Mat Mat Min Exi Min Distress Signals 2 | . . 2 . . . Communications Jammed . | . . . . . . Distress Signals . | . . . . . . Times Spotted 65 | . 10 44 8 . 3 Peak Tracking Total 9 | . 3 9 3 . 3 Tactical Retreats 2 | . . 2 . . . Traps | -11 -10 -9 -9 -9 -8 ------- Run | Yrd Mat Mat Min Exi Min Traps Triggered 5 | . 4 1 . . . Indirectly . | . . . . . . Trap Hack Attempts . | . . . . . . Triggered . | . . . . . . Disarmed . | . . . . . . Reprogrammed . | . . . . . . Reused . | . . . . . . Traps Extracted . | . . . . . . Installed . | . . . . . . Triggered . | . . . . . . Machines | -11 -10 -9 -9 -9 -8 ---------- Run | Yrd Mat Mat Min Exi Min Machines Disabled 1 | . . 1 . . . Max in Single Turn 1 | . . 1 . . . Machines Repaired . | . . . . . . Machines Dismantled . | . . . . . . Machines Sabotaged . | . . . . . . Overloaded Fab Kills . | . . . . . . Hacking | -11 -10 -9 -9 -9 -8 --------- Run | Yrd Mat Mat Min Exi Min Machines Accessed 16 | . 2 13 . 1 . Terminals 12 | . 2 10 . . . Fabricators . | . . . . . . Repair Stations 1 | . . 1 . . . Recycling Units . | . . . . . . Scanalyzers 2 | . . 2 . . . Garrison Access . | . . . . . . Total Hacks 46 | . 7 38 . 1 . Successful 31 | . 2 28 . 1 . Failed 15 | . 5 10 . . . Catastrophic . | . . . . . . Database Lockouts . | . . . . . . Manual 25 | . 3 21 . 1 . Terminals 33 | . 7 26 . . . Fabricators . | . . . . . . Repair Stations 2 | . . 2 . . . Recycling Units . | . . . . . . Scanalyzers 10 | . . 10 . . . Garrison Access . | . . . . . . Terminal Hacks 10 | . 1 8 . 1 . Record 1 | . . 1 . . . Part Schematic 1 | . . 1 . . . Robot Analysis 4 | . 1 3 . . . Prototype ID Bank 1 | . . 1 . . . Terminal Index 1 | . . 1 . . . Dispatch Records 1 | . . 1 . . . Derelict Proto ID Bank 1 | . . . . 1 . Fabricator Hacks . | . . . . . . Repair Station Hacks 2 | . . 2 . . . Scan Component 1 | . . 1 . . . Repair 1 | . . 1 . . . Recycling Unit Hacks . | . . . . . . Scanalyzer 10 | . . 10 . . . Insert Component 5 | . . 5 . . . Analyze 5 | . . 5 . . . Garrison Access Hacks . | . . . . . . Unauthorized Hacks 9 | . 1 8 . . . Terminals 9 | . 1 8 . . . Botnet 9 | . 1 8 . . . Fabricators . | . . . . . . Repair Stations . | . . . . . . Recycling Units . | . . . . . . Scanalyzers . | . . . . . . Garrison Access . | . . . . . . Data Cores Recovered 1 | . . 1 . . . Used 1 | . . 1 . . . Hacking Detections 15 | . 2 13 . . . Full Trace Events 2 | . 1 1 . . . Feedback Events 1 | . . 1 . . . Corruption 1 | . . 1 . . . Feedback Blocked . | . . . . . . Robot Schematics Acquired . | . . . . . . Robots Built . | . . . . . . Authchips . | . . . . . . Time . | . . . . . . Total Robot Build Rating . | . . . . . . Part Schematics Acquired 5 | . . 5 . . . Parts Built . | . . . . . . Authchips . | . . . . . . Time . | . . . . . . Total Part Build Rating . | . . . . . . Parts Repaired 1 | . . 1 . . . Time 51 | . . 51 . . . Parts Recycled . | . . . . . . Recycled Matter . | . . . . . . Retrieved Matter . | . . . . . . Retrieved Components . | . . . . . . Parts Scanalyzed 4 | . . 4 . . . Part Schematics Acquired 4 | . . 4 . . . Parts Damaged . | . . . . . . Bothacking | -11 -10 -9 -9 -9 -8 ------------ Run | Yrd Mat Mat Min Exi Min Used RIF Installer . | . . . . . . Robots Hacked . | . . . . . . Non-combat . | . . . . . . Combat . | . . . . . . Robot Hacks Applied . | . . . . . . Relay Couplers Released . | . . . . . . Fabnet Peak Effective % . | . . . . . . Robots Rewired . | . . . . . . Allies Hacked . | . . . . . . Hacks Repelled . | . . . . . . Allies | -11 -10 -9 -9 -9 -8 -------- Run | Yrd Mat Mat Min Exi Min Total Allies 2 | . . . 2 . . Largest Group 2 | . . . 2 1 . Highest-Rated Group 41 | . . . 41 31 . Highest-Rated Ally 31 | . . . 31 31 . Total Orders . | . . . . . . Ally Attacks . | . . . . . . Total Damage . | . . . . . . Kills . | . . . . . . Allies Corrupted . | . . . . . . Allies Melted . | . . . . . . Intel | -11 -10 -9 -9 -9 -8 ------- Run | Yrd Mat Mat Min Exi Min Robot Analysis Total 4 | . 1 3 . . . Derelict Logs Recovered 2 | . . . 2 . . Drone Launches . | . . . . . . Drone Recoveries . | . . . . . . Exploration | -11 -10 -9 -9 -9 -8 ------------- Run | Yrd Mat Mat Min Exi Min Turns Passed 4835 | . 690 2411 1112 614 8 Spaces Moved 3508 | 1 492 1728 827 460 . Core . | . . . . . . Treads . | . . . . . . Legs 1 | 1 . . . . . Wheels 3507 | . 492 1728 827 460 . Hover . | . . . . . . Flight . | . . . . . . Fastest Speed 80 | 120 80 95 116 116 . Average Speed 112 | 120 100 114 116 116 . Slowest Speed 135 | 120 110 135 116 116 . Overloaded Moves . | . . . . . . Propulsion Burnouts . | . . . . . . Robots Hopped . | . . . . . . Cave-ins Triggered . | . . . . . . Exploration Rate (%) 61 | 2 78 94 99 90 4 Regions Visited 5 Branch Regions 3 Pre-discovered Areas . | . . . . . . Known Exits Taken 3 | . . 1 1 1 . Unknown Exits Taken 2 | 1 1 . . . . Scrap Searched 3 | . . . 3 . . Spaces Dug 12 | . 12 . . . . Terrain Destroyed 22 | . 13 4 5 . . Melee . | . . . . . . Projectile 22 | . 13 4 5 . . AOE . | . . . . . . Terrain Rammed . | . . . . . . Walls Destroyed . | . . . . . . Machines Disabled . | . . . . . . Actions | -11 -10 -9 -9 -9 -8 --------- Run | Yrd Mat Mat Min Exi Min Total 4143 | . 608 2026 961 544 4 Wait 313 | . 49 67 122 75 . Move 3503 | . 491 1727 826 459 . Hop . | . . . . . . Pick Up 78 | . 19 55 1 3 . Fast Attach 6 | . 1 5 . . . Attach 17 | . 2 13 . . 2 Detach 3 | . 1 . . 2 . Swap 22 | . 4 18 . . . Drop 64 | . 8 50 1 5 . Fire 131 | . 33 86 10 . 2 Melee 5 | . . 5 . . . Ram 1 | . . . 1 . . Kick . | . . . . . . Crush . | . . . . . . Escape Stasis . | . . . . . . Rewire . | . . . . . . Trap . | . . . . . . Miscellaneous . | . . . . . . Route ------- -11/Scrapyard -10/Materials (discovered 4 exits: *Mat x3 / [*Min]) -9/Materials (discovered 4 exits: *Mat x3 / *Min) -9/Mines (discovered 3 exits: *Mat x2 / *Exi) -9/Exiles -8/Mines History --------- Turn | Location | Event 1 | -11/Scrapyard | Discovered new exit (range 0) 1 | -11/Scrapyard | Entered Materials 84 | -10/Materials | Discovered new exit (range 4) 313 | -10/Materials | Build established: Mutant 385 | -10/Materials | Discovered new exit (range 16) 472 | -10/Materials | Discovered new exit (range 15) 677 | -10/Materials | Discovered new exit (range 13) 691 | -10/Materials | Entered another Materials area 691 | -9/Materials | Evolved 2 slots: Propulsion x1, Utility x1 824 | -9/Materials | Lost 3 parts (1n1u1w) 859 | -9/Materials | Lost 3 parts (3n) 887 | -9/Materials | Discovered new exit (range 16) 979 | -9/Materials | Core integrity fell below 50% 1023 | -9/Materials | Destroyed 7 combat bots 1029 | -9/Materials | Discovered new exit (range 16) 1030 | -9/Materials | Lost 3 parts (1n1u1w) 1315 | -9/Materials | Build established: Scavenger-Mutant 1682 | -9/Materials | Repaired Adv. Beam Cannon 1911 | -9/Materials | Discovered new exit (range 8) 1919 | -9/Materials | Identified exit to Materials 2283 | -9/Materials | Core integrity fell below 20% 2396 | -9/Materials | Discovered exit to Materials (range 8) 3063 | -9/Materials | Identified exit to Mines 3102 | -9/Materials | Entered Mines 3133 | -9/Mines | Discovered exit to Materials (range 8) 3179 | -9/Mines | Learned Materials interactive machine intel 3192 | -9/Mines | Learned Materials stockpile data 3251 | -9/Mines | Build established: Mutant 3805 | -9/Mines | Discovered exit to Materials (range 8) 4032 | -9/Mines | Deemed a non-threat by the Exiles lab entrance 4032 | -9/Mines | Discovered new exit (range 5) 4035 | -9/Mines | Identified exit to Exiles 4214 | -9/Mines | Entered Exiles 4214 | -9/Exiles | Accompanied by 1 ally 4244 | -9/Exiles | Led the pair of lost Derelicts to a safe place 4247 | -9/Exiles | Met 8R-AWN 4269 | -9/Exiles | Met EX-HEX 4378 | -9/Exiles | Met EX-BIN 4399 | -9/Exiles | Aligned with FarCom system 4401 | -9/Exiles | Given EX-Vault access code 4427 | -9/Exiles | Opened EX-Vault 4438 | -9/Exiles | Found Skeleton Box 4442 | -9/Exiles | Found PSU Rigger 4467 | -9/Exiles | Warned to stay clear of 0b10 Research branches 4497 | -9/Exiles | Met EX-DEC 4643 | -9/Exiles | Visited The Gauntlet 4813 | -9/Exiles | Discovered new exit (range 14) 4826 | -9/Exiles | Identified exit to Mines 4828 | -9/Exiles | Left Exiles lab with PSU Rigger 4828 | -9/Exiles | Entered Mines 4836 | -8/Mines | Destroyed by L-31 Rogue with Katana Last Messages --------------- EX-BIN: And don't even think about spreading that code around. We're gonna change it right after you leave. Most certainly not to something like 1234 which I did last time as a little joke and some thief managed to sneak in here and steal a few of HEX's prototypes. EX-DEC: Ah I see we have a visitor. One wrong move in here and I'll invert your atomic chain! 04499_ EX-DEC: "Oops, I hope HEX didn't hear that..." 04507_ System corrupted: Com. Wheel fused. 04794_ Dropped Cargo Storage Unit. 04795_ Acquired Humpback. 04813_ EXIT=FOUND 04826_ EXIT=IDENTIFIED: MINES LOCATION=MINES GOAL=ESCAPE 04828_ Receiving FarCom transmissions... 04829_ T-07 Excavator is excavating. Map ----- +----------------------------------------------------+ | ?????????????????????????????????????? | | ?????????????????????????????????????? | | ?????????????????????????????????????? | | ?????????????????????????????????????? | | ?????????????????????????????????????? | | ?????????????????????????????????????? | | ?????????????????????????????????????? | | ?????????????????????????????????????? | | ?????????????????????????????????????? | | ?????????????????????????????????????? | | ?????????????????????????? ?????????? | | ?????????????????????????? ##???????? | | ?????????????????????????? ???????? | | ?????????????????????????# ????????? | | ????????????????????????? ????????? | | ????????????????????????# ????????? | | ???????????????????????? ????????? | | ???????????????????????? ?????????? | | ???????????????????????? ?????????? | | ???????????????????????? ?????????? | | ????????????????????????# #?????????? | | ????????????????????????# #?????????? | | ????????????????????????# ##????????? | | ????????????????????????# # #??????? | | ???????????????????????## t #??????? | | ???????????????????????# @ #???????? | | ??????????????????????# l ##???????? | | ????????????????????? g g##????????? | | ??????????????????? ##?????????? | | ??????????????????#########??????????? | | ?????????????????????????????????????? | | ?????????????????????????????????????? | | ?????????????????????????????????????? | | ?????????????????????????????????????? | | ?????????????????????????????????????? | | | | | | | | | | | | | | | | | | | | | | | | | | | | | | | +----------------------------------------------------+ Best States ------------- Heat Dissipation 42 Energy Generation 14 Energy Capacity 265 Matter Stores 300 Matter Capacity 300 Sight Range 18 Terrain Scan Density 10 Resistance: KI 20 Resistance: TH 20 Resistance: EX 20 Resistance: EM 20 Resistance: I 20 Resistance: S 20 Resistance: P 20 Evasion (%) 44 Offensive Hacking 10 Item Schematics ----------------- Plasma Cutter | -9/Materials | Hacked Adv. Beam Cannon | -9/Materials | Scanalyzed Cargo Storage Unit | -9/Materials | Scanalyzed Hvy. Assault Rifle | -9/Materials | Scanalyzed Autogun | -9/Materials | Scanalyzed Robot Schematics ------------------ None Fabricated ------------ Nothing Alien Tech Used ----------------- None Achievements -------------- None Challenges ------------ None Game ------ Seed SiegePortableSuite Manual? 0 Play Time 00:32:53 Cumulative 120.5 hours Start 2024.08.05 @ 11:56:48 End 2024.08.05 @ 12:29:34 Sessions 1 Manual Loads 0 Difficulty Adventurer Special Mode None Game No. 167 Rogue 0 Adventurer 167 Explorer 0 Win Type - Total 0 Types 0/0/0/0/0/0/0/0/0 Lore% 47 Gallery% 52 Achievement% 37 Wizard Run 0 Options --------- Layout 2 ASCII 0 Keyboard 0 Movement Mouse Keybinds 0 Fullscreen 2 Font 48/Terminus Map View 50x44 Zoom Use 0% Tactical HUD 1 Map Filters NONE Filters NONE Steam 1 RUN: 0be803d4-7ac7-4096-add6-ac35fae53b43